[Event "Titled Tuesday Blitz March 29 Late 2022"]
[White "Nazari, Arad"]
[Black "Babazada, Khazar"]
[WhiteFideId "12577324"]
[BlackFideId "13413554"]
[WhiteElo "2120"]
[BlackElo "2418"]
[Result "1-0"]
[Round "07"]
[TimeControl "180+1"]
[Date "2022.03.29"]
[WhiteClock "0:00:06"]
[BlackClock "0:00:02"]

1. e4 {[%clk 0:03:00]}  g6 {[%clk 0:03:00]} 2. d4 {[%clk 0:03:00]}  Bg7 {[%clk 0:03:00]} 3. Nc3 {[%clk 0:03:00]}  c6 {[%clk 0:03:00]} 4. f4 {[%clk 0:03:00]}  d5 {[%clk 0:03:01]} 5. e5 {[%clk 0:03:00]}  Nh6 {[%clk 0:03:00]} 6. Bd3 {[%clk 0:02:59]}  O-O {[%clk 0:03:00]} 7. Nf3 {[%clk 0:02:56]}  Bf5 {[%clk 0:02:56]} 8. h3 {[%clk 0:02:52]}  Bxd3 {[%clk 0:02:54]} 9. Qxd3 {[%clk 0:02:52]}  f6 {[%clk 0:02:55]} 10. Bd2 {[%clk 0:02:47]}  fxe5 {[%clk 0:02:51]} 11. fxe5 {[%clk 0:02:47]}  Qd7 {[%clk 0:02:39]} 12. g4 {[%clk 0:02:40]}  Na6 {[%clk 0:02:38]} 13. a3 {[%clk 0:02:37]}  c5 {[%clk 0:02:36]} 14. O-O-O {[%clk 0:02:01]}  cxd4 {[%clk 0:02:36]} 15. Nxd4 {[%clk 0:02:00]}  Nc5 {[%clk 0:02:36]} 16. Qb5 {[%clk 0:01:56]}  Qxb5 {[%clk 0:02:30]} 17. Ndxb5 {[%clk 0:01:55]}  e6 {[%clk 0:02:28]} 18. Be3 {[%clk 0:01:53]}  Rfc8 {[%clk 0:02:13]} 19. Nd6 {[%clk 0:01:44]}  Rc6 {[%clk 0:02:13]} 20. Rhe1 {[%clk 0:01:39]}  Nd7 {[%clk 0:01:51]} 21. Ndb5 {[%clk 0:01:33]}  Nf7 {[%clk 0:01:17]} 22. Nxa7 {[%clk 0:01:18]}  Rxc3 {[%clk 0:00:49]} 23. bxc3 {[%clk 0:01:18]}  Nfxe5 {[%clk 0:00:50]} 24. Nb5 {[%clk 0:01:13]}  Ra5 {[%clk 0:00:50]} 25. Nd4 {[%clk 0:01:11]}  Rxa3 {[%clk 0:00:42]} 26. Nb5 {[%clk 0:01:02]}  Ra5 {[%clk 0:00:41]} 27. Nd4 {[%clk 0:00:57]}  Nc4 {[%clk 0:00:41]} 28. Nb3 {[%clk 0:00:55]}  Ra2 {[%clk 0:00:40]} 29. Bd4 {[%clk 0:00:54]}  Nde5 {[%clk 0:00:30]} 30. g5 {[%clk 0:00:45]}  b6 {[%clk 0:00:30]} 31. Kb1 {[%clk 0:00:38]}  Ra8 {[%clk 0:00:28]} 32. h4 {[%clk 0:00:33]}  Kf7 {[%clk 0:00:27]} 33. Re2 {[%clk 0:00:33]}  Ke7 {[%clk 0:00:26]} 34. Rde1 {[%clk 0:00:32]}  Kd6 {[%clk 0:00:26]} 35. Nd2 {[%clk 0:00:30]}  Nxd2+ {[%clk 0:00:24]} 36. Rxd2 {[%clk 0:00:29]}  Nf3 {[%clk 0:00:24]} 37. Rdd1 {[%clk 0:00:22]}  Bxd4 {[%clk 0:00:20]} 38. cxd4 {[%clk 0:00:20]}  Nxe1 {[%clk 0:00:20]} 39. Rxe1 {[%clk 0:00:21]}  Ra4 {[%clk 0:00:20]} 40. c3 {[%clk 0:00:21]}  b5 {[%clk 0:00:19]} 41. Kb2 {[%clk 0:00:21]}  Rc4 {[%clk 0:00:17]} 42. Kb3 {[%clk 0:00:21]}  b4 {[%clk 0:00:17]} 43. cxb4 {[%clk 0:00:21]}  Rxd4 {[%clk 0:00:17]} 44. Rc1 {[%clk 0:00:19]}  Rxh4 {[%clk 0:00:15]} 45. b5 {[%clk 0:00:20]}  Rf4 {[%clk 0:00:10]} 46. b6 {[%clk 0:00:19]}  Rf7 {[%clk 0:00:09]} 47. Kb4 {[%clk 0:00:19]}  d4 {[%clk 0:00:07]} 48. Kb5 {[%clk 0:00:18]}  e5 {[%clk 0:00:08]} 49. Rc6+ {[%clk 0:00:16]}  Kd5 {[%clk 0:00:08]} 50. Rc7 {[%clk 0:00:16]}  Rf1 {[%clk 0:00:07]} 51. Rd7+ {[%clk 0:00:14]}  Ke4 {[%clk 0:00:07]} 52. b7 {[%clk 0:00:13]}  Rb1+ {[%clk 0:00:07]} 53. Kc4 {[%clk 0:00:11]}  Ke3 {[%clk 0:00:06]} 54. Rxh7 {[%clk 0:00:09]}  d3 {[%clk 0:00:04]} 55. Rh3+ {[%clk 0:00:09]}  Ke2 {[%clk 0:00:03]} 56. Rh2+ {[%clk 0:00:09]}  Ke3 {[%clk 0:00:03]} 57. Rh3+ {[%clk 0:00:10]}  Ke2 {[%clk 0:00:02]} 58. Rxd3 {[%clk 0:00:09]}  Rxb7 {[%clk 0:00:02]} 59. Rd6 {[%clk 0:00:08]}  e4 {[%clk 0:00:02]} 60. Rxg6 {[%clk 0:00:07]}  Rd7 {[%clk 0:00:03]} 61. Re6 {[%clk 0:00:07]}  e3 {[%clk 0:00:03]} 62. g6 {[%clk 0:00:07]}  Kf2 {[%clk 0:00:04]} 63. Rf6+ {[%clk 0:00:06]}  Kg3 {[%clk 0:00:04]} 64. Rf7 {[%clk 0:00:07]}  Rd8 {[%clk 0:00:02]} 65. g7 {[%clk 0:00:07]}  e2 {[%clk 0:00:03]} 66. Rf8 {[%clk 0:00:07]}  e1=Q {[%clk 0:00:02]} 67. g8=Q+ {[%clk 0:00:06]} 1-0


[Site "https://www.chess.com"]

[Event "Titled Tuesday Blitz March 29 Late 2022"]
[White "Oganian, Miran"]
[Black "Tregubov, Pavel V."]
[WhiteFideId "4122488"]
[BlackFideId "4115341"]
[WhiteElo "2357"]
[BlackElo "2341"]
[Result "1-0"]
[Round "07"]
[TimeControl "180+1"]
[Date "2022.03.29"]
[WhiteClock "0:00:54"]
[BlackClock "0:00:31"]

1. d4 {[%clk 0:02:59]}  Nf6 {[%clk 0:02:59]} 2. Nc3 {[%clk 0:02:59]}  d5 {[%clk 0:02:58]} 3. Bf4 {[%clk 0:03:00]}  e6 {[%clk 0:02:45]} 4. Nb5 {[%clk 0:02:59]}  Na6 {[%clk 0:02:39]} 5. e3 {[%clk 0:02:59]}  c6 {[%clk 0:02:31]} 6. Nc3 {[%clk 0:02:58]}  Bd6 {[%clk 0:02:29]} 7. Bxd6 {[%clk 0:02:58]}  Qxd6 {[%clk 0:02:29]} 8. Bxa6 {[%clk 0:02:58]}  bxa6 {[%clk 0:02:29]} 9. Nf3 {[%clk 0:02:59]}  c5 {[%clk 0:02:27]} 10. O-O {[%clk 0:02:59]}  O-O {[%clk 0:02:26]} 11. Na4 {[%clk 0:03:00]}  cxd4 {[%clk 0:02:21]} 12. exd4 {[%clk 0:03:00]}  a5 {[%clk 0:02:21]} 13. Nc5 {[%clk 0:02:59]}  Nd7 {[%clk 0:02:15]} 14. Nxd7 {[%clk 0:02:58]}  Bxd7 {[%clk 0:02:16]} 15. Ne5 {[%clk 0:02:59]}  Rab8 {[%clk 0:02:15]} 16. b3 {[%clk 0:02:58]}  a4 {[%clk 0:02:15]} 17. Re1 {[%clk 0:02:58]}  Rfc8 {[%clk 0:02:14]} 18. Re3 {[%clk 0:02:58]}  Be8 {[%clk 0:02:12]} 19. h4 {[%clk 0:02:56]}  Rc7 {[%clk 0:02:05]} 20. h5 {[%clk 0:02:56]}  Rbc8 {[%clk 0:01:59]} 21. Rc1 {[%clk 0:02:56]}  f6 {[%clk 0:01:57]} 22. Ng4 {[%clk 0:02:52]}  h6 {[%clk 0:01:55]} 23. Rg3 {[%clk 0:02:50]}  Kh8 {[%clk 0:01:53]} 24. Qd2 {[%clk 0:02:22]}  Qf8 {[%clk 0:01:41]} 25. Rh3 {[%clk 0:01:34]}  Bd7 {[%clk 0:01:41]} 26. Rg3 {[%clk 0:01:23]}  a5 {[%clk 0:01:30]} 27. c3 {[%clk 0:01:22]}  axb3 {[%clk 0:01:23]} 28. axb3 {[%clk 0:01:23]}  Rb7 {[%clk 0:01:22]} 29. c4 {[%clk 0:01:19]}  a4 {[%clk 0:01:06]} 30. bxa4 {[%clk 0:01:13]}  Rxc4 {[%clk 0:00:57]} 31. Rxc4 {[%clk 0:01:11]}  dxc4 {[%clk 0:00:58]} 32. a5 {[%clk 0:01:12]}  Be8 {[%clk 0:00:52]} 33. a6 {[%clk 0:01:09]}  Rb1+ {[%clk 0:00:50]} 34. Kh2 {[%clk 0:01:08]}  Bxh5 {[%clk 0:00:50]} 35. Qa5 {[%clk 0:01:04]}  c3 {[%clk 0:00:45]} 36. a7 {[%clk 0:01:00]}  c2 {[%clk 0:00:36]} 37. a8=Q {[%clk 0:00:55]}  Qxa8 {[%clk 0:00:31]} 38. Qxa8+ {[%clk 0:00:54]} 1-0


[Site "https://www.chess.com"]

[Event "Titled Tuesday Blitz March 29 Late 2022"]
[White "Paravyan, David"]
[Black "Melkumyan, Hrant"]
[WhiteFideId "4194985"]
[BlackFideId "13302485"]
[WhiteElo "2569"]
[BlackElo "2604"]
[Result "1/2-1/2"]
[Round "07"]
[TimeControl "180+1"]
[Date "2022.03.29"]
[WhiteClock "0:01:11"]
[BlackClock "0:01:16"]

1. e4 {[%clk 0:03:00]}  e5 {[%clk 0:02:59]} 2. Nf3 {[%clk 0:03:01]}  Nc6 {[%clk 0:03:00]} 3. Nc3 {[%clk 0:03:02]}  Nf6 {[%clk 0:03:00]} 4. d4 {[%clk 0:03:02]}  exd4 {[%clk 0:03:00]} 5. Nxd4 {[%clk 0:03:03]}  Bb4 {[%clk 0:03:00]} 6. Nxc6 {[%clk 0:03:04]}  bxc6 {[%clk 0:03:01]} 7. Bd3 {[%clk 0:03:04]}  d5 {[%clk 0:02:57]} 8. exd5 {[%clk 0:03:05]}  O-O {[%clk 0:02:57]} 9. O-O {[%clk 0:03:06]}  cxd5 {[%clk 0:02:57]} 10. Bg5 {[%clk 0:03:07]}  c6 {[%clk 0:02:56]} 11. Qf3 {[%clk 0:03:06]}  Bd6 {[%clk 0:02:45]} 12. Rae1 {[%clk 0:03:06]}  h6 {[%clk 0:02:43]} 13. Bxf6 {[%clk 0:03:04]}  Qxf6 {[%clk 0:02:44]} 14. Qxf6 {[%clk 0:03:05]}  gxf6 {[%clk 0:02:45]} 15. Nd1 {[%clk 0:03:05]}  Bd7 {[%clk 0:02:40]} 16. Ne3 {[%clk 0:03:05]}  Rfe8 {[%clk 0:02:38]} 17. Nf5 {[%clk 0:03:04]}  Bxf5 {[%clk 0:02:38]} 18. Bxf5 {[%clk 0:03:04]}  Rad8 {[%clk 0:02:23]} 19. Re3 {[%clk 0:03:00]}  Rxe3 {[%clk 0:02:18]} 20. fxe3 {[%clk 0:03:01]}  c5 {[%clk 0:02:16]} 21. Rd1 {[%clk 0:02:51]}  Be5 {[%clk 0:02:16]} 22. b3 {[%clk 0:02:49]}  d4 {[%clk 0:02:12]} 23. g3 {[%clk 0:02:29]}  Kf8 {[%clk 0:02:11]} 24. Kg2 {[%clk 0:02:26]}  Ke7 {[%clk 0:02:10]} 25. exd4 {[%clk 0:02:26]}  Rxd4 {[%clk 0:02:08]} 26. Bd3 {[%clk 0:02:27]}  a5 {[%clk 0:02:05]} 27. a4 {[%clk 0:02:19]}  Kf8 {[%clk 0:02:02]} 28. Rf1 {[%clk 0:02:19]}  Kg7 {[%clk 0:01:59]} 29. Rf5 {[%clk 0:02:16]}  Kf8 {[%clk 0:01:59]} 30. Kf3 {[%clk 0:02:16]}  Kg7 {[%clk 0:01:59]} 31. Ke3 {[%clk 0:02:16]}  Kf8 {[%clk 0:01:59]} 32. Kd2 {[%clk 0:02:10]}  Rd8 {[%clk 0:01:53]} 33. Rh5 {[%clk 0:02:08]}  Kg7 {[%clk 0:01:54]} 34. Ke3 {[%clk 0:01:56]}  Rd4 {[%clk 0:01:53]} 35. Be4 {[%clk 0:01:54]}  Rd1 {[%clk 0:01:48]} 36. Ke2 {[%clk 0:01:53]}  Rd4 {[%clk 0:01:48]} 37. Kf3 {[%clk 0:01:52]}  c4 {[%clk 0:01:39]} 38. Rh4 {[%clk 0:01:39]}  cxb3 {[%clk 0:01:37]} 39. cxb3 {[%clk 0:01:40]}  Rd2 {[%clk 0:01:37]} 40. Ke3 {[%clk 0:01:36]}  Rd1 {[%clk 0:01:32]} 41. Bd3 {[%clk 0:01:33]}  Re1+ {[%clk 0:01:28]} 42. Kf3 {[%clk 0:01:32]}  Bd6 {[%clk 0:01:23]} 43. Rd4 {[%clk 0:01:30]}  Bb4 {[%clk 0:01:21]} 44. Bc4 {[%clk 0:01:28]}  Re5 {[%clk 0:01:17]} 45. Kg4 {[%clk 0:01:27]}  Rg5+ {[%clk 0:01:17]} 46. Kf4 {[%clk 0:01:25]}  Re5 {[%clk 0:01:18]} 47. Rd7 {[%clk 0:01:23]}  Re7 {[%clk 0:01:17]} 48. Rd5 {[%clk 0:01:23]}  Re5 {[%clk 0:01:18]} 49. Rd3 {[%clk 0:01:18]}  Re7 {[%clk 0:01:18]} 50. Kf3 {[%clk 0:01:16]}  Re5 {[%clk 0:01:18]} 51. Rd4 {[%clk 0:01:16]}  Re7 {[%clk 0:01:19]} 52. Rg4+ {[%clk 0:01:16]}  Kf8 {[%clk 0:01:19]} 53. Kf4 {[%clk 0:01:15]}  Re5 {[%clk 0:01:18]} 54. Kf3 {[%clk 0:01:13]}  Rg5 {[%clk 0:01:17]} 55. Rh4 {[%clk 0:01:13]}  Kg7 {[%clk 0:01:17]} 56. Rd4 {[%clk 0:01:12]}  Re5 {[%clk 0:01:17]} 57. h4 {[%clk 0:01:12]}  Bc5 {[%clk 0:01:16]} 58. Rd7 {[%clk 0:01:11]}  Re7 {[%clk 0:01:16]} 1/2-1/2


[Site "https://www.chess.com"]

[Event "Titled Tuesday Blitz March 29 Late 2022"]
[White "Petesch, Gabriel"]
[Black "Sanchez, Robert"]
[WhiteFideId "2032465"]
[BlackFideId "2034360"]
[WhiteElo "2374"]
[BlackElo "2297"]
[Result "1-0"]
[Round "07"]
[TimeControl "180+1"]
[Date "2022.03.30"]
[WhiteClock "0:00:03"]
[BlackClock "0:00:25"]

1. Nc3 {[%clk 0:02:58]}  e6 {[%clk 0:02:59]} 2. e4 {[%clk 0:02:53]}  d5 {[%clk 0:02:59]} 3. exd5 {[%clk 0:02:53]}  exd5 {[%clk 0:03:00]} 4. g3 {[%clk 0:02:53]}  Nf6 {[%clk 0:03:00]} 5. Bg2 {[%clk 0:02:53]}  c6 {[%clk 0:02:59]} 6. Nf3 {[%clk 0:02:53]}  Bc5 {[%clk 0:02:57]} 7. O-O {[%clk 0:02:51]}  O-O {[%clk 0:02:57]} 8. d3 {[%clk 0:02:43]}  Bg4 {[%clk 0:02:55]} 9. Ne2 {[%clk 0:02:39]}  Nbd7 {[%clk 0:02:50]} 10. d4 {[%clk 0:02:29]}  Bb6 {[%clk 0:02:41]} 11. Nf4 {[%clk 0:02:27]}  Re8 {[%clk 0:02:38]} 12. c3 {[%clk 0:02:26]}  Ne4 {[%clk 0:02:37]} 13. h3 {[%clk 0:02:24]}  Bf5 {[%clk 0:02:37]} 14. Nd3 {[%clk 0:02:20]}  Bc7 {[%clk 0:02:35]} 15. Re1 {[%clk 0:02:12]}  h6 {[%clk 0:02:29]} 16. Qb3 {[%clk 0:02:05]}  b5 {[%clk 0:02:24]} 17. Bf4 {[%clk 0:02:02]}  a5 {[%clk 0:02:15]} 18. Bxc7 {[%clk 0:01:48]}  Qxc7 {[%clk 0:02:14]} 19. Nf4 {[%clk 0:01:49]}  g5 {[%clk 0:02:01]} 20. Ne2 {[%clk 0:01:18]}  Bg6 {[%clk 0:01:47]} 21. Qd1 {[%clk 0:01:09]}  b4 {[%clk 0:01:38]} 22. Rc1 {[%clk 0:00:58]}  Qd6 {[%clk 0:01:35]} 23. c4 {[%clk 0:00:56]}  Re7 {[%clk 0:01:16]} 24. cxd5 {[%clk 0:00:52]}  cxd5 {[%clk 0:01:16]} 25. Qa4 {[%clk 0:00:38]}  Nb6 {[%clk 0:01:02]} 26. Qc6 {[%clk 0:00:19]}  Qxc6 {[%clk 0:01:00]} 27. Rxc6 {[%clk 0:00:17]}  Nc4 {[%clk 0:01:00]} 28. b3 {[%clk 0:00:18]}  Ncd6 {[%clk 0:00:45]} 29. Ne5 {[%clk 0:00:15]}  Bh7 {[%clk 0:00:42]} 30. f3 {[%clk 0:00:10]}  f6 {[%clk 0:00:34]} 31. fxe4 {[%clk 0:00:07]}  Nxe4 {[%clk 0:00:31]} 32. Bxe4 {[%clk 0:00:03]}  fxe5 {[%clk 0:00:29]} 33. Bxd5+ {[%clk 0:00:03]}  Kh8 {[%clk 0:00:28]} 34. Rxh6 {[%clk 0:00:03]}  exd4 {[%clk 0:00:28]} 35. Bxa8 {[%clk 0:00:02]}  d3 {[%clk 0:00:26]} 36. Kf2 {[%clk 0:00:03]}  dxe2 {[%clk 0:00:25]} 37. Rxe2 {[%clk 0:00:03]} 1-0


[Site "https://www.chess.com"]

[Event "Titled Tuesday Blitz March 29 Late 2022"]
[White "Ricaurte Lopez, Juan Carlos"]
[Black "Terletsky, Oleg"]
[WhiteFideId "3600327"]
[BlackFideId "14116774"]
[WhiteElo "2209"]
[BlackElo "2064"]
[Result "0-1"]
[Round "07"]
[TimeControl "180+1"]
[Date "2022.03.30"]
[WhiteClock "0:00:02"]
[BlackClock "0:00:05"]

1. e4 {[%clk 0:03:00]}  e5 {[%clk 0:02:58]} 2. d4 {[%clk 0:02:59]}  exd4 {[%clk 0:02:58]} 3. c3 {[%clk 0:02:58]}  dxc3 {[%clk 0:02:55]} 4. Nxc3 {[%clk 0:02:57]}  Nc6 {[%clk 0:02:54]} 5. Bc4 {[%clk 0:02:55]}  Nf6 {[%clk 0:02:51]} 6. Nf3 {[%clk 0:02:52]}  Bb4 {[%clk 0:02:36]} 7. e5 {[%clk 0:02:47]}  Ng4 {[%clk 0:02:35]} 8. Bxf7+ {[%clk 0:02:38]}  Kxf7 {[%clk 0:02:32]} 9. Ng5+ {[%clk 0:02:38]}  Ke8 {[%clk 0:02:19]} 10. Qxg4 {[%clk 0:02:35]}  Bxc3+ {[%clk 0:02:16]} 11. bxc3 {[%clk 0:02:32]}  Nxe5 {[%clk 0:02:14]} 12. Qe2 {[%clk 0:02:15]}  Qe7 {[%clk 0:02:09]} 13. O-O {[%clk 0:02:12]}  d6 {[%clk 0:02:00]} 14. Re1 {[%clk 0:02:11]}  h6 {[%clk 0:01:54]} 15. f4 {[%clk 0:01:58]}  hxg5 {[%clk 0:01:41]} 16. fxe5 {[%clk 0:01:57]}  d5 {[%clk 0:01:34]} 17. Qe3 {[%clk 0:01:31]}  g4 {[%clk 0:01:24]} 18. a4 {[%clk 0:01:15]}  Qh4 {[%clk 0:01:13]} 19. Ba3 {[%clk 0:01:01]}  Qxh2+ {[%clk 0:01:09]} 20. Kf2 {[%clk 0:01:01]}  Rh5 {[%clk 0:00:53]} 21. Qc5 {[%clk 0:00:17]}  Rf5+ {[%clk 0:00:41]} 22. Ke3 {[%clk 0:00:17]}  Qh4 {[%clk 0:00:14]} 23. Kd2 {[%clk 0:00:13]}  Be6 {[%clk 0:00:10]} 24. Rf1 {[%clk 0:00:11]}  Qg5+ {[%clk 0:00:08]} 25. Kd3 {[%clk 0:00:10]}  Kf7 {[%clk 0:00:08]} 26. Rae1 {[%clk 0:00:06]}  Kg6 {[%clk 0:00:06]} 27. Kc2 {[%clk 0:00:05]}  c6 {[%clk 0:00:06]} 28. Qe3 {[%clk 0:00:03]}  Qxe3 {[%clk 0:00:05]} 29. Rxe3 {[%clk 0:00:02]}  Rxf1 {[%clk 0:00:05]} 0-1


[Site "https://www.chess.com"]

[Event "Titled Tuesday Blitz March 29 Late 2022"]
[White "Rozman, Levy"]
[Black "Shimanov, Aleksandr"]
[WhiteFideId "2039877"]
[BlackFideId "4198603"]
[WhiteElo "2376"]
[BlackElo "2636"]
[Result "1-0"]
[Round "07"]
[TimeControl "180+1"]
[Date "2022.03.29"]
[WhiteClock "0:00:10"]
[BlackClock "0:00:02"]

1. d4 {[%clk 0:03:00]}  d5 {[%clk 0:02:51]} 2. Bg5 {[%clk 0:02:59]}  h6 {[%clk 0:02:37]} 3. Bh4 {[%clk 0:02:59]}  c6 {[%clk 0:02:38]} 4. Nc3 {[%clk 0:02:55]}  Nf6 {[%clk 0:02:36]} 5. f3 {[%clk 0:02:55]}  Bf5 {[%clk 0:02:32]} 6. Bxf6 {[%clk 0:02:45]}  exf6 {[%clk 0:02:33]} 7. e4 {[%clk 0:02:46]}  dxe4 {[%clk 0:02:31]} 8. fxe4 {[%clk 0:02:47]}  Bg6 {[%clk 0:02:30]} 9. Nf3 {[%clk 0:02:47]}  Bb4 {[%clk 0:02:29]} 10. Bd3 {[%clk 0:02:32]}  O-O {[%clk 0:02:20]} 11. O-O {[%clk 0:02:17]}  Re8 {[%clk 0:02:18]} 12. Qe2 {[%clk 0:02:10]}  Nd7 {[%clk 0:01:54]} 13. a3 {[%clk 0:02:05]}  Ba5 {[%clk 0:01:51]} 14. Rad1 {[%clk 0:02:00]}  Nf8 {[%clk 0:01:50]} 15. Kh1 {[%clk 0:01:52]}  Ne6 {[%clk 0:01:49]} 16. Qe3 {[%clk 0:01:45]}  Qe7 {[%clk 0:01:39]} 17. b4 {[%clk 0:01:38]}  Bb6 {[%clk 0:01:38]} 18. Na4 {[%clk 0:01:38]}  Bc7 {[%clk 0:01:39]} 19. c3 {[%clk 0:01:34]}  Nf4 {[%clk 0:01:31]} 20. Bb1 {[%clk 0:01:25]}  Bxe4 {[%clk 0:01:21]} 21. Rde1 {[%clk 0:01:12]}  f5 {[%clk 0:01:19]} 22. Nc5 {[%clk 0:00:38]}  Nd5 {[%clk 0:01:01]} 23. Qd2 {[%clk 0:00:32]}  Bf4 {[%clk 0:00:55]} 24. Qf2 {[%clk 0:00:31]}  Nxc3 {[%clk 0:00:52]} 25. Bxe4 {[%clk 0:00:27]}  fxe4 {[%clk 0:00:51]} 26. Nh4 {[%clk 0:00:24]}  Nd5 {[%clk 0:00:34]} 27. Rxe4 {[%clk 0:00:20]}  Qc7 {[%clk 0:00:33]} 28. Nf5 {[%clk 0:00:14]}  Rxe4 {[%clk 0:00:33]} 29. Nxe4 {[%clk 0:00:14]}  Re8 {[%clk 0:00:33]} 30. Qf3 {[%clk 0:00:12]}  Qd7 {[%clk 0:00:30]} 31. Qg4 {[%clk 0:00:12]}  f6 {[%clk 0:00:08]} 32. Nxh6+ {[%clk 0:00:12]}  Bxh6 {[%clk 0:00:09]} 33. Qxd7 {[%clk 0:00:12]}  Rxe4 {[%clk 0:00:10]} 34. Qc8+ {[%clk 0:00:10]}  Kf7 {[%clk 0:00:09]} 35. Qxb7+ {[%clk 0:00:10]}  Ne7 {[%clk 0:00:09]} 36. b5 {[%clk 0:00:10]}  Be3 {[%clk 0:00:09]} 37. bxc6 {[%clk 0:00:10]}  Rxd4 {[%clk 0:00:01]} 38. c7 {[%clk 0:00:10]}  Rc4 {[%clk 0:00:02]} 39. Qb3 {[%clk 0:00:10]} 1-0


[Site "https://www.chess.com"]

[Event "Titled Tuesday Blitz March 29 Late 2022"]
[White "Rudykh, Stepan"]
[Black "Miszler, Levente"]
[WhiteFideId "4180321"]
[BlackFideId "763276"]
[WhiteElo "2208"]
[BlackElo "1966"]
[Result "0-1"]
[Round "07"]
[TimeControl "180+1"]
[Date "2022.03.30"]
[WhiteClock "0:00:03"]
[BlackClock "0:01:30"]

1. e4 {[%clk 0:03:00]}  e6 {[%clk 0:02:59]} 2. d4 {[%clk 0:03:00]}  d5 {[%clk 0:02:59]} 3. Nd2 {[%clk 0:03:01]}  f5 {[%clk 0:02:58]} 4. exf5 {[%clk 0:02:58]}  exf5 {[%clk 0:02:58]} 5. Ngf3 {[%clk 0:02:42]}  Nf6 {[%clk 0:02:58]} 6. c4 {[%clk 0:02:39]}  c6 {[%clk 0:02:56]} 7. Bd3 {[%clk 0:02:38]}  Bd6 {[%clk 0:02:55]} 8. O-O {[%clk 0:02:37]}  O-O {[%clk 0:02:53]} 9. c5 {[%clk 0:02:27]}  Bc7 {[%clk 0:02:52]} 10. b4 {[%clk 0:02:27]}  Ne4 {[%clk 0:02:52]} 11. a4 {[%clk 0:02:18]}  Nd7 {[%clk 0:02:52]} 12. b5 {[%clk 0:02:17]}  Ndf6 {[%clk 0:02:52]} 13. Qb3 {[%clk 0:02:11]}  Kh8 {[%clk 0:02:49]} 14. Ne5 {[%clk 0:01:47]}  Qe8 {[%clk 0:02:36]} 15. Ndf3 {[%clk 0:01:35]}  Ng4 {[%clk 0:02:25]} 16. h3 {[%clk 0:01:30]}  Nxe5 {[%clk 0:02:21]} 17. Nxe5 {[%clk 0:01:29]}  Bxe5 {[%clk 0:02:21]} 18. dxe5 {[%clk 0:01:28]}  Qxe5 {[%clk 0:02:22]} 19. Bb2 {[%clk 0:01:28]}  Qe7 {[%clk 0:02:17]} 20. Bxe4 {[%clk 0:01:26]}  fxe4 {[%clk 0:02:17]} 21. Bd4 {[%clk 0:01:17]}  Be6 {[%clk 0:02:09]} 22. f3 {[%clk 0:01:00]}  Qh4 {[%clk 0:01:57]} 23. fxe4 {[%clk 0:00:57]}  Qxe4 {[%clk 0:01:57]} 24. Qe3 {[%clk 0:00:45]}  Qxe3+ {[%clk 0:01:49]} 25. Bxe3 {[%clk 0:00:46]}  Bf5 {[%clk 0:01:49]} 26. Bf4 {[%clk 0:00:40]}  g6 {[%clk 0:01:45]} 27. Be5+ {[%clk 0:00:23]}  Kg8 {[%clk 0:01:44]} 28. g4 {[%clk 0:00:24]}  Bd3 {[%clk 0:01:43]} 29. Rxf8+ {[%clk 0:00:19]}  Rxf8 {[%clk 0:01:44]} 30. Rd1 {[%clk 0:00:11]}  Bc2 {[%clk 0:01:44]} 31. Ra1 {[%clk 0:00:09]}  Re8 {[%clk 0:01:44]} 32. Bd6 {[%clk 0:00:08]}  Re2 {[%clk 0:01:43]} 33. bxc6 {[%clk 0:00:07]}  bxc6 {[%clk 0:01:43]} 34. Rf1 {[%clk 0:00:08]}  Bxa4 {[%clk 0:01:37]} 35. Rf8+ {[%clk 0:00:08]}  Kg7 {[%clk 0:01:36]} 36. Ra8 {[%clk 0:00:09]}  d4 {[%clk 0:01:31]} 37. Rxa7+ {[%clk 0:00:08]}  Kf6 {[%clk 0:01:31]} 38. Rxa4 {[%clk 0:00:09]}  d3 {[%clk 0:01:32]} 39. Rd4 {[%clk 0:00:09]}  d2 {[%clk 0:01:32]} 40. Rxd2 {[%clk 0:00:05]}  Rxd2 {[%clk 0:01:31]} 41. Kf1 {[%clk 0:00:05]}  Ke6 {[%clk 0:01:30]} 42. Bg3 {[%clk 0:00:05]}  Ra2 {[%clk 0:01:30]} 43. Bf2 {[%clk 0:00:04]}  Kd5 {[%clk 0:01:30]} 44. Be3 {[%clk 0:00:04]}  Ke4 {[%clk 0:01:30]} 45. Bf2 {[%clk 0:00:03]}  Kf3 {[%clk 0:01:30]} 0-1


[Site "https://www.chess.com"]

[Event "Titled Tuesday Blitz March 29 Late 2022"]
[White "Song, Guannan Terry"]
[Black "Dahlgren, James Allen"]
[WhiteFideId "2614189"]
[BlackFideId "22256873"]
[WhiteElo "2115"]
[BlackElo "2126"]
[Result "1-0"]
[Round "07"]
[TimeControl "180+1"]
[Date "2022.03.30"]
[WhiteClock "0:00:59"]
[BlackClock "0:00:17"]

1. e4 {[%clk 0:03:00]}  e6 {[%clk 0:02:59]} 2. d4 {[%clk 0:03:00]}  c5 {[%clk 0:02:59]} 3. d5 {[%clk 0:02:59]}  d6 {[%clk 0:02:59]} 4. Nc3 {[%clk 0:02:55]}  g6 {[%clk 0:03:00]} 5. Nf3 {[%clk 0:02:53]}  Bg7 {[%clk 0:02:59]} 6. dxe6 {[%clk 0:02:52]}  Bxe6 {[%clk 0:02:58]} 7. Bf4 {[%clk 0:02:50]}  Bxc3+ {[%clk 0:02:49]} 8. bxc3 {[%clk 0:02:49]}  Qa5 {[%clk 0:02:49]} 9. Qd2 {[%clk 0:02:47]}  Nc6 {[%clk 0:02:48]} 10. Be2 {[%clk 0:02:45]}  O-O-O {[%clk 0:02:48]} 11. O-O {[%clk 0:02:45]}  Ne5 {[%clk 0:02:30]} 12. Qe3 {[%clk 0:02:34]}  f6 {[%clk 0:02:25]} 13. Rab1 {[%clk 0:02:29]}  a6 {[%clk 0:02:12]} 14. Rfd1 {[%clk 0:02:24]}  Ne7 {[%clk 0:02:10]} 15. h3 {[%clk 0:02:21]}  N7c6 {[%clk 0:02:02]} 16. Bg3 {[%clk 0:02:12]}  Qxa2 {[%clk 0:01:45]} 17. Rb6 {[%clk 0:02:06]}  Qxc2 {[%clk 0:01:10]} 18. Rdb1 {[%clk 0:02:00]}  Bc4 {[%clk 0:00:57]} 19. Nd2 {[%clk 0:01:37]}  Bxe2 {[%clk 0:00:51]} 20. Qxe2 {[%clk 0:01:38]}  Rd7 {[%clk 0:00:28]} 21. Kh2 {[%clk 0:01:30]}  Qxc3 {[%clk 0:00:27]} 22. Rxa6 {[%clk 0:01:25]}  bxa6 {[%clk 0:00:27]} 23. Qxa6+ {[%clk 0:01:26]}  Kd8 {[%clk 0:00:27]} 24. Qa8+ {[%clk 0:01:16]}  Ke7 {[%clk 0:00:25]} 25. Qxh8 {[%clk 0:01:16]}  Qxd2 {[%clk 0:00:25]} 26. Qxh7+ {[%clk 0:01:14]}  Ke6 {[%clk 0:00:24]} 27. Qg8+ {[%clk 0:01:13]}  Rf7 {[%clk 0:00:24]} 28. Rb7 {[%clk 0:01:08]}  Ne7 {[%clk 0:00:21]} 29. Qe8 {[%clk 0:01:02]}  Qd3 {[%clk 0:00:20]} 30. f4 {[%clk 0:00:59]}  Nc6 {[%clk 0:00:17]} 31. Qd7# {[%clk 0:00:59]} 1-0


[Site "https://www.chess.com"]